[Event "Titled Tuesday Blitz July 26 Late 2022"]
[White "Alexiadis, Hristos"]
[Black "Goltseva, Ekaterina"]
[WhiteFideId "4249623"]
[BlackFideId "24173770"]
[WhiteElo "2416"]
[BlackElo "2086"]
[Result "0-1"]
[Round "04"]
[TimeControl "180+1"]
[Date "2022.07.26"]
[WhiteClock "0:00:08"]
[BlackClock "0:00:04"]

1. d4 {[%clk 0:03:00]}  d5 {[%clk 0:02:51]} 2. c4 {[%clk 0:03:01]}  e5 {[%clk 0:02:51]} 3. Nf3 {[%clk 0:03:00]}  e4 {[%clk 0:02:48]} 4. Nfd2 {[%clk 0:03:01]}  c6 {[%clk 0:02:48]} 5. Nc3 {[%clk 0:03:01]}  f5 {[%clk 0:02:46]} 6. e3 {[%clk 0:02:58]}  Nf6 {[%clk 0:02:47]} 7. Be2 {[%clk 0:02:52]}  Be7 {[%clk 0:02:47]} 8. O-O {[%clk 0:02:51]}  O-O {[%clk 0:02:47]} 9. f4 {[%clk 0:02:51]}  Kh8 {[%clk 0:02:25]} 10. Rb1 {[%clk 0:02:46]}  a5 {[%clk 0:02:23]} 11. a3 {[%clk 0:02:44]}  Na6 {[%clk 0:02:22]} 12. c5 {[%clk 0:02:22]}  Nc7 {[%clk 0:02:10]} 13. b4 {[%clk 0:02:22]}  axb4 {[%clk 0:02:11]} 14. axb4 {[%clk 0:02:22]}  Rg8 {[%clk 0:02:07]} 15. Kh1 {[%clk 0:02:19]}  Ne6 {[%clk 0:02:03]} 16. b5 {[%clk 0:02:09]}  g5 {[%clk 0:02:03]} 17. fxg5 {[%clk 0:02:10]}  Nxg5 {[%clk 0:02:03]} 18. bxc6 {[%clk 0:02:02]}  bxc6 {[%clk 0:02:03]} 19. Rb6 {[%clk 0:02:03]}  Bd7 {[%clk 0:02:00]} 20. Qe1 {[%clk 0:01:57]}  Qf8 {[%clk 0:01:47]} 21. Rb7 {[%clk 0:01:42]}  Rb8 {[%clk 0:01:41]} 22. Ra7 {[%clk 0:01:28]}  Ra8 {[%clk 0:01:41]} 23. Rb7 {[%clk 0:01:26]}  Qc8 {[%clk 0:01:40]} 24. Rb4 {[%clk 0:01:17]}  Qf8 {[%clk 0:01:37]} 25. Na4 {[%clk 0:01:11]}  Rb8 {[%clk 0:01:11]} 26. Nb6 {[%clk 0:01:07]}  Be6 {[%clk 0:01:11]} 27. Nb3 {[%clk 0:01:05]}  Qg7 {[%clk 0:00:57]} 28. Qg3 {[%clk 0:00:47]}  Qh6 {[%clk 0:00:31]} 29. Qe5 {[%clk 0:00:44]}  Qg6 {[%clk 0:00:29]} 30. Nxd5 {[%clk 0:00:15]}  Nf7 {[%clk 0:00:17]} 31. Nf4 {[%clk 0:00:10]}  Nxe5 {[%clk 0:00:14]} 32. Nxg6+ {[%clk 0:00:10]}  Nxg6 {[%clk 0:00:14]} 33. Rxb8 {[%clk 0:00:11]}  Rxb8 {[%clk 0:00:15]} 34. Na5 {[%clk 0:00:11]}  Bd5 {[%clk 0:00:15]} 35. Rxf5 {[%clk 0:00:11]}  Kg7 {[%clk 0:00:13]} 36. Rf1 {[%clk 0:00:09]}  Rb1 {[%clk 0:00:13]} 37. Bd2 {[%clk 0:00:08]}  Rb2 {[%clk 0:00:11]} 38. Rd1 {[%clk 0:00:06]}  h5 {[%clk 0:00:10]} 39. Nc4 {[%clk 0:00:06]}  Rc2 {[%clk 0:00:09]} 40. Na3 {[%clk 0:00:05]}  Ra2 {[%clk 0:00:09]} 41. Nc4 {[%clk 0:00:05]}  Ng4 {[%clk 0:00:09]} 42. Kg1 {[%clk 0:00:05]}  Bh4 {[%clk 0:00:08]} 43. g3 {[%clk 0:00:04]}  Bg5 {[%clk 0:00:09]} 44. Nb6 {[%clk 0:00:04]}  Rxd2 {[%clk 0:00:07]} 45. Bxg4 {[%clk 0:00:03]}  hxg4 {[%clk 0:00:06]} 46. Rxd2 {[%clk 0:00:03]}  Bxe3+ {[%clk 0:00:07]} 47. Rf2 {[%clk 0:00:04]}  Ne7 {[%clk 0:00:05]} 48. Kf1 {[%clk 0:00:03]}  Bxf2 {[%clk 0:00:05]} 49. Kxf2 {[%clk 0:00:04]}  Nf5 {[%clk 0:00:04]} 50. Nxd5 {[%clk 0:00:04]}  cxd5 {[%clk 0:00:05]} 51. c6 {[%clk 0:00:04]}  Ne7 {[%clk 0:00:05]} 52. Ke3 {[%clk 0:00:05]}  Nxc6 {[%clk 0:00:05]} 53. Kf4 {[%clk 0:00:06]}  Nxd4 {[%clk 0:00:04]} 54. Kxg4 {[%clk 0:00:07]}  Nf3 {[%clk 0:00:04]} 55. h4 {[%clk 0:00:07]}  d4 {[%clk 0:00:04]} 56. Kf4 {[%clk 0:00:08]}  d3 {[%clk 0:00:04]} 57. Ke3 {[%clk 0:00:08]}  Nh2 {[%clk 0:00:04]} 0-1


[Site "https://www.chess.com"]

[Event "Titled Tuesday Blitz July 26 Late 2022"]
[White "Aravindh, Chithambaram VR."]
[Black "Domingo Nunez, Ruben"]
[WhiteFideId "5072786"]
[BlackFideId "22245570"]
[WhiteElo "2577"]
[BlackElo "2373"]
[Result "1-0"]
[Round "04"]
[TimeControl "180+1"]
[Date "2022.07.26"]
[WhiteClock "0:00:04"]
[BlackClock "0:00:05"]

1. b3 {[%clk 0:03:00]}  d6 {[%clk 0:02:59]} 2. Bb2 {[%clk 0:03:00]}  Nd7 {[%clk 0:03:00]} 3. d4 {[%clk 0:02:59]}  Ngf6 {[%clk 0:03:01]} 4. Nd2 {[%clk 0:02:59]}  g6 {[%clk 0:03:00]} 5. e4 {[%clk 0:02:58]}  Bg7 {[%clk 0:03:01]} 6. Ngf3 {[%clk 0:02:59]}  O-O {[%clk 0:03:01]} 7. Bd3 {[%clk 0:02:59]}  e5 {[%clk 0:03:02]} 8. c3 {[%clk 0:02:58]}  a5 {[%clk 0:02:58]} 9. a4 {[%clk 0:02:57]}  c6 {[%clk 0:02:59]} 10. O-O {[%clk 0:02:57]}  Re8 {[%clk 0:02:59]} 11. Qc2 {[%clk 0:02:56]}  Qc7 {[%clk 0:03:00]} 12. Rfe1 {[%clk 0:02:56]}  Nh5 {[%clk 0:02:56]} 13. Rad1 {[%clk 0:02:55]}  b6 {[%clk 0:02:53]} 14. Bf1 {[%clk 0:02:49]}  Bb7 {[%clk 0:02:53]} 15. Nc4 {[%clk 0:02:43]}  exd4 {[%clk 0:02:23]} 16. Nxd4 {[%clk 0:02:44]}  Rad8 {[%clk 0:02:18]} 17. g3 {[%clk 0:02:32]}  Ne5 {[%clk 0:02:11]} 18. f4 {[%clk 0:02:13]}  Nxc4 {[%clk 0:01:58]} 19. Bxc4 {[%clk 0:02:14]}  Nf6 {[%clk 0:01:59]} 20. Bf1 {[%clk 0:02:09]}  Qc8 {[%clk 0:01:50]} 21. Bg2 {[%clk 0:02:08]}  d5 {[%clk 0:01:40]} 22. e5 {[%clk 0:02:07]}  Ne4 {[%clk 0:01:41]} 23. c4 {[%clk 0:02:02]}  f5 {[%clk 0:01:35]} 24. cxd5 {[%clk 0:01:44]}  cxd5 {[%clk 0:01:36]} 25. Rc1 {[%clk 0:01:42]}  Bf8 {[%clk 0:01:27]} 26. Qxc8 {[%clk 0:01:31]}  Rxc8 {[%clk 0:01:27]} 27. Nb5 {[%clk 0:01:30]}  Bb4 {[%clk 0:01:24]} 28. Red1 {[%clk 0:01:27]}  Bd2 {[%clk 0:01:22]} 29. Rxd2 {[%clk 0:01:19]}  Nxd2 {[%clk 0:01:20]} 30. Nd6 {[%clk 0:01:19]}  Rxc1+ {[%clk 0:01:17]} 31. Bxc1 {[%clk 0:01:20]}  Nxb3 {[%clk 0:01:17]} 32. Be3 {[%clk 0:00:58]}  Kf8 {[%clk 0:00:42]} 33. Nxe8 {[%clk 0:00:37]}  Kxe8 {[%clk 0:00:39]} 34. Bxb6 {[%clk 0:00:38]}  Bc6 {[%clk 0:00:36]} 35. Kf2 {[%clk 0:00:37]}  Kd7 {[%clk 0:00:36]} 36. Bf3 {[%clk 0:00:33]}  Ke6 {[%clk 0:00:34]} 37. Bd1 {[%clk 0:00:28]}  Bxa4 {[%clk 0:00:33]} 38. Bxa5 {[%clk 0:00:08]}  Nxa5 {[%clk 0:00:31]} 39. Bxa4 {[%clk 0:00:08]}  Nb7 {[%clk 0:00:26]} 40. Ke3 {[%clk 0:00:07]}  Nc5 {[%clk 0:00:26]} 41. Bc2 {[%clk 0:00:04]}  Kd7 {[%clk 0:00:21]} 42. Kd4 {[%clk 0:00:04]}  Kc6 {[%clk 0:00:22]} 43. Kc3 {[%clk 0:00:03]}  Ne6 {[%clk 0:00:20]} 44. Kb4 {[%clk 0:00:03]}  Kb6 {[%clk 0:00:17]} 45. Bb3 {[%clk 0:00:03]}  Nc7 {[%clk 0:00:12]} 46. Ba2 {[%clk 0:00:02]}  Na6+ {[%clk 0:00:12]} 47. Kc3 {[%clk 0:00:02]}  Kc5 {[%clk 0:00:13]} 48. Bb3 {[%clk 0:00:02]}  Nc7 {[%clk 0:00:13]} 49. Kd3 {[%clk 0:00:01]}  Ne6 {[%clk 0:00:13]} 50. Ba2 {[%clk 0:00:02]}  Nd4 {[%clk 0:00:13]} 51. Ke3 {[%clk 0:00:02]}  Nc2+ {[%clk 0:00:13]} 52. Kd2 {[%clk 0:00:02]}  Nb4 {[%clk 0:00:13]} 53. Bb3 {[%clk 0:00:02]}  Nc6 {[%clk 0:00:13]} 54. Ba2 {[%clk 0:00:03]}  Nb4 {[%clk 0:00:14]} 55. Bb1 {[%clk 0:00:03]}  Nc6 {[%clk 0:00:14]} 56. Bd3 {[%clk 0:00:03]}  Nd4 {[%clk 0:00:14]} 57. Ke3 {[%clk 0:00:02]}  Ne6 {[%clk 0:00:13]} 58. Bc2 {[%clk 0:00:02]}  Nd4 {[%clk 0:00:14]} 59. Ba4 {[%clk 0:00:03]}  Ne6 {[%clk 0:00:08]} 60. Bd7 {[%clk 0:00:03]}  Nf8 {[%clk 0:00:06]} 61. Be8 {[%clk 0:00:03]}  Ne6 {[%clk 0:00:05]} 62. Bf7 {[%clk 0:00:04]}  Nd8 {[%clk 0:00:05]} 63. Bg8 {[%clk 0:00:04]}  d4+ {[%clk 0:00:03]} 64. Kd3 {[%clk 0:00:04]}  h6 {[%clk 0:00:04]} 65. Bh7 {[%clk 0:00:03]}  g5 {[%clk 0:00:03]} 66. Bxf5 {[%clk 0:00:03]}  gxf4 {[%clk 0:00:03]} 67. gxf4 {[%clk 0:00:04]}  Nc6 {[%clk 0:00:04]} 68. Be4 {[%clk 0:00:04]}  Nb4+ {[%clk 0:00:05]} 69. Kd2 {[%clk 0:00:05]}  Kc4 {[%clk 0:00:05]} 70. f5 {[%clk 0:00:05]}  Na6 {[%clk 0:00:02]} 71. f6 {[%clk 0:00:05]}  Nc5 {[%clk 0:00:03]} 72. Bc2 {[%clk 0:00:04]}  Kd5 {[%clk 0:00:03]} 73. f7 {[%clk 0:00:04]}  Nd7 {[%clk 0:00:03]} 74. Bf5 {[%clk 0:00:04]}  Nf8 {[%clk 0:00:04]} 75. e6 {[%clk 0:00:04]}  Kd6 {[%clk 0:00:04]} 76. Kd3 {[%clk 0:00:05]}  Ke7 {[%clk 0:00:04]} 77. Kxd4 {[%clk 0:00:05]}  h5 {[%clk 0:00:04]} 78. h4 {[%clk 0:00:05]}  Nxe6+ {[%clk 0:00:05]} 79. Bxe6 {[%clk 0:00:05]}  Kxe6 {[%clk 0:00:05]} 80. f8=Q {[%clk 0:00:04]} 1-0


[Site "https://www.chess.com"]

[Event "Titled Tuesday Blitz July 26 Late 2022"]
[White "Bartholomew, John"]
[Black "Kamsky, Gata"]
[WhiteFideId "2019353"]
[BlackFideId "2000024"]
[WhiteElo "2769"]
[BlackElo "2645"]
[Result "0-1"]
[Round "04"]
[TimeControl "180+1"]
[Date "2022.07.26"]
[WhiteClock "0:00:06"]
[BlackClock "0:00:17"]

1. Nf3 {[%clk 0:03:00]}  Nf6 {[%clk 0:02:59]} 2. c4 {[%clk 0:02:58]}  b6 {[%clk 0:02:58]} 3. g3 {[%clk 0:02:57]}  Bb7 {[%clk 0:02:57]} 4. Bg2 {[%clk 0:02:58]}  c5 {[%clk 0:02:54]} 5. O-O {[%clk 0:02:58]}  e6 {[%clk 0:02:53]} 6. Nc3 {[%clk 0:02:58]}  Be7 {[%clk 0:02:53]} 7. d4 {[%clk 0:02:55]}  cxd4 {[%clk 0:02:53]} 8. Qxd4 {[%clk 0:02:56]}  O-O {[%clk 0:02:50]} 9. Bg5 {[%clk 0:02:53]}  d6 {[%clk 0:02:38]} 10. Bxf6 {[%clk 0:02:49]}  Bxf6 {[%clk 0:02:37]} 11. Qf4 {[%clk 0:02:49]}  Bxc3 {[%clk 0:02:22]} 12. bxc3 {[%clk 0:02:49]}  Qe7 {[%clk 0:02:21]} 13. Rfd1 {[%clk 0:02:48]}  Rd8 {[%clk 0:02:20]} 14. Ng5 {[%clk 0:02:35]}  Nc6 {[%clk 0:01:51]} 15. Ne4 {[%clk 0:02:00]}  d5 {[%clk 0:01:29]} 16. cxd5 {[%clk 0:01:58]}  exd5 {[%clk 0:01:29]} 17. Ng5 {[%clk 0:01:57]}  h6 {[%clk 0:01:21]} 18. Nh3 {[%clk 0:01:45]}  Na5 {[%clk 0:01:01]} 19. e3 {[%clk 0:01:41]}  Rac8 {[%clk 0:01:01]} 20. Qd4 {[%clk 0:01:15]}  g5 {[%clk 0:00:52]} 21. f4 {[%clk 0:01:07]}  Nc4 {[%clk 0:00:37]} 22. Re1 {[%clk 0:01:02]}  f6 {[%clk 0:00:35]} 23. Nf2 {[%clk 0:00:56]}  Kg7 {[%clk 0:00:31]} 24. Rad1 {[%clk 0:00:45]}  Nd6 {[%clk 0:00:30]} 25. Bh3 {[%clk 0:00:39]}  Rc5 {[%clk 0:00:28]} 26. Qd2 {[%clk 0:00:31]}  Nb5 {[%clk 0:00:26]} 27. e4 {[%clk 0:00:20]}  d4 {[%clk 0:00:26]} 28. c4 {[%clk 0:00:18]}  Nc3 {[%clk 0:00:26]} 29. e5 {[%clk 0:00:15]}  fxe5 {[%clk 0:00:25]} 30. Rc1 {[%clk 0:00:10]}  e4 {[%clk 0:00:25]} 31. Rxc3 {[%clk 0:00:10]}  dxc3 {[%clk 0:00:25]} 32. Qxc3+ {[%clk 0:00:11]}  Qf6 {[%clk 0:00:25]} 33. Qe3 {[%clk 0:00:11]}  Qd4 {[%clk 0:00:24]} 34. Qe2 {[%clk 0:00:08]}  e3 {[%clk 0:00:24]} 35. Ng4 {[%clk 0:00:08]}  Qe4 {[%clk 0:00:21]} 36. Bg2 {[%clk 0:00:07]}  Qxg2+ {[%clk 0:00:21]} 37. Qxg2 {[%clk 0:00:08]}  Bxg2 {[%clk 0:00:21]} 38. Kxg2 {[%clk 0:00:09]}  gxf4 {[%clk 0:00:21]} 39. gxf4 {[%clk 0:00:10]}  Rxc4 {[%clk 0:00:20]} 40. Kf3 {[%clk 0:00:11]}  Rf8 {[%clk 0:00:20]} 41. Nxe3 {[%clk 0:00:09]}  Rcxf4+ {[%clk 0:00:20]} 42. Kg3 {[%clk 0:00:09]}  R4f7 {[%clk 0:00:20]} 43. Ng4 {[%clk 0:00:09]}  Kh7 {[%clk 0:00:20]} 44. Re6 {[%clk 0:00:09]}  Rg7 {[%clk 0:00:19]} 45. Rxh6+ {[%clk 0:00:08]}  Kg8 {[%clk 0:00:20]} 46. Re6 {[%clk 0:00:08]}  Rf5 {[%clk 0:00:20]} 47. Re2 {[%clk 0:00:09]}  Ra5 {[%clk 0:00:19]} 48. h3 {[%clk 0:00:09]}  Ra3+ {[%clk 0:00:19]} 49. Kg2 {[%clk 0:00:10]}  Kf7 {[%clk 0:00:18]} 50. Rf2+ {[%clk 0:00:08]}  Ke6 {[%clk 0:00:19]} 51. Rd2 {[%clk 0:00:09]}  Kf5 {[%clk 0:00:19]} 52. Re2 {[%clk 0:00:09]}  Kf4 {[%clk 0:00:19]} 53. Rf2+ {[%clk 0:00:09]}  Ke4 {[%clk 0:00:19]} 54. Re2+ {[%clk 0:00:10]}  Kd4 {[%clk 0:00:20]} 55. Rf2 {[%clk 0:00:10]}  Kc4 {[%clk 0:00:19]} 56. Kh2 {[%clk 0:00:10]}  b5 {[%clk 0:00:19]} 57. Ne5+ {[%clk 0:00:11]}  Kd5 {[%clk 0:00:19]} 58. Ng4 {[%clk 0:00:11]}  Kc5 {[%clk 0:00:19]} 59. Ne5 {[%clk 0:00:11]}  b4 {[%clk 0:00:19]} 60. Ng4 {[%clk 0:00:10]}  a5 {[%clk 0:00:18]} 61. Rc2+ {[%clk 0:00:09]}  Kb5 {[%clk 0:00:18]} 62. Rf2 {[%clk 0:00:09]}  Rc3 {[%clk 0:00:18]} 63. Ne5 {[%clk 0:00:09]}  Ka4 {[%clk 0:00:19]} 64. h4 {[%clk 0:00:08]}  Ka3 {[%clk 0:00:18]} 65. Nf3 {[%clk 0:00:06]}  Rf7 {[%clk 0:00:18]} 66. Kg3 {[%clk 0:00:07]}  a4 {[%clk 0:00:18]} 67. h5 {[%clk 0:00:07]}  b3 {[%clk 0:00:18]} 68. axb3 {[%clk 0:00:08]}  axb3 {[%clk 0:00:19]} 69. h6 {[%clk 0:00:09]}  b2 {[%clk 0:00:18]} 70. h7 {[%clk 0:00:06]}  Rxh7 {[%clk 0:00:18]} 71. Kg4 {[%clk 0:00:06]}  b1=Q {[%clk 0:00:17]} 0-1


[Site "https://www.chess.com"]

[Event "Titled Tuesday Blitz July 26 Late 2022"]
[White "Blanco Ronquillo, Humberto L."]
[Black "Wachinger, Guenther"]
[WhiteFideId "3504239"]
[BlackFideId "4604261"]
[WhiteElo "2423"]
[BlackElo "2212"]
[Result "1-0"]
[Round "04"]
[TimeControl "180+1"]
[Date "2022.07.27"]
[WhiteClock "0:00:07"]
[BlackClock "0:00:01"]

1. e4 {[%clk 0:03:00]}  c5 {[%clk 0:02:58]} 2. Nf3 {[%clk 0:03:00]}  d6 {[%clk 0:02:58]} 3. d4 {[%clk 0:02:58]}  cxd4 {[%clk 0:02:59]} 4. Nxd4 {[%clk 0:02:59]}  Nf6 {[%clk 0:02:59]} 5. Nc3 {[%clk 0:02:58]}  g6 {[%clk 0:03:00]} 6. g3 {[%clk 0:02:58]}  Bg7 {[%clk 0:02:56]} 7. Bg2 {[%clk 0:02:58]}  O-O {[%clk 0:02:57]} 8. O-O {[%clk 0:02:58]}  Nc6 {[%clk 0:02:56]} 9. Nde2 {[%clk 0:02:57]}  Bd7 {[%clk 0:02:47]} 10. Nd5 {[%clk 0:02:54]}  Rc8 {[%clk 0:02:47]} 11. a4 {[%clk 0:02:46]}  Ne5 {[%clk 0:02:42]} 12. h3 {[%clk 0:02:39]}  a6 {[%clk 0:02:40]} 13. a5 {[%clk 0:02:37]}  Nc4 {[%clk 0:02:38]} 14. Qe1 {[%clk 0:01:45]}  Nxd5 {[%clk 0:02:20]} 15. exd5 {[%clk 0:01:45]}  Nxb2 {[%clk 0:02:19]} 16. Rb1 {[%clk 0:01:23]}  Nc4 {[%clk 0:02:14]} 17. Rxb7 {[%clk 0:01:21]}  Bb5 {[%clk 0:02:01]} 18. Bg5 {[%clk 0:01:13]}  f6 {[%clk 0:01:53]} 19. Bd2 {[%clk 0:01:12]}  Nxd2 {[%clk 0:01:22]} 20. Qxd2 {[%clk 0:01:13]}  f5 {[%clk 0:01:22]} 21. Rb1 {[%clk 0:01:03]}  Rc7 {[%clk 0:01:05]} 22. Rb6 {[%clk 0:00:44]}  Qc8 {[%clk 0:00:53]} 23. Nd4 {[%clk 0:00:37]}  Bxd4 {[%clk 0:00:45]} 24. Qxd4 {[%clk 0:00:38]}  Rxc2 {[%clk 0:00:46]} 25. Qe3 {[%clk 0:00:38]}  Re2 {[%clk 0:00:34]} 26. Qf3 {[%clk 0:00:27]}  Qc2 {[%clk 0:00:26]} 27. R1xb5 {[%clk 0:00:24]}  axb5 {[%clk 0:00:17]} 28. Rxb5 {[%clk 0:00:20]}  Re1+ {[%clk 0:00:17]} 29. Kh2 {[%clk 0:00:19]}  Ra1 {[%clk 0:00:18]} 30. Qe3 {[%clk 0:00:17]}  Qc1 {[%clk 0:00:07]} 31. Qe6+ {[%clk 0:00:15]}  Kh8 {[%clk 0:00:07]} 32. h4 {[%clk 0:00:12]}  Qc7 {[%clk 0:00:07]} 33. Qe3 {[%clk 0:00:09]}  Rf6 {[%clk 0:00:04]} 34. Qb3 {[%clk 0:00:08]}  Rxa5 {[%clk 0:00:03]} 35. Rb7 {[%clk 0:00:08]}  Qc5 {[%clk 0:00:02]} 36. Rxe7 {[%clk 0:00:08]}  Ra8 {[%clk 0:00:02]} 37. Qb2 {[%clk 0:00:07]}  Rf8 {[%clk 0:00:01]} 38. Re6 {[%clk 0:00:07]} 1-0


[Site "https://www.chess.com"]

[Event "Titled Tuesday Blitz July 26 Late 2022"]
[White "Csonka, Balazs"]
[Black "Bortnyk, Mykola"]
[WhiteFideId "742910"]
[BlackFideId "14120836"]
[WhiteElo "2404"]
[BlackElo "2582"]
[Result "1-0"]
[Round "04"]
[TimeControl "180+1"]
[Date "2022.07.26"]
[WhiteClock "0:00:16"]
[BlackClock "0:00:14"]

1. d4 {[%clk 0:03:00]}  d5 {[%clk 0:02:59]} 2. c4 {[%clk 0:03:00]}  e6 {[%clk 0:02:59]} 3. Nf3 {[%clk 0:02:55]}  Nf6 {[%clk 0:02:59]} 4. Nc3 {[%clk 0:02:55]}  c6 {[%clk 0:02:54]} 5. Bg5 {[%clk 0:02:54]}  Nbd7 {[%clk 0:02:51]} 6. e3 {[%clk 0:02:49]}  Be7 {[%clk 0:02:50]} 7. Bd3 {[%clk 0:02:45]}  dxc4 {[%clk 0:02:49]} 8. Bxc4 {[%clk 0:02:44]}  O-O {[%clk 0:02:45]} 9. O-O {[%clk 0:02:43]}  b5 {[%clk 0:02:43]} 10. Bd3 {[%clk 0:02:44]}  a6 {[%clk 0:02:44]} 11. Qc2 {[%clk 0:02:34]}  h6 {[%clk 0:02:41]} 12. Bxf6 {[%clk 0:02:33]}  Nxf6 {[%clk 0:02:40]} 13. Ne4 {[%clk 0:02:24]}  Bb7 {[%clk 0:02:25]} 14. Ne5 {[%clk 0:01:49]}  Rc8 {[%clk 0:02:15]} 15. Nc5 {[%clk 0:01:40]}  Qc7 {[%clk 0:01:56]} 16. Rfc1 {[%clk 0:01:31]}  Nd5 {[%clk 0:01:37]} 17. a3 {[%clk 0:01:14]}  Bxc5 {[%clk 0:01:30]} 18. Qxc5 {[%clk 0:01:10]}  f6 {[%clk 0:01:30]} 19. Ng6 {[%clk 0:01:06]}  Rfe8 {[%clk 0:01:26]} 20. Rc2 {[%clk 0:00:56]}  Qf7 {[%clk 0:01:04]} 21. Rac1 {[%clk 0:00:47]}  e5 {[%clk 0:01:02]} 22. Bf5 {[%clk 0:00:34]}  Rc7 {[%clk 0:00:56]} 23. e4 {[%clk 0:00:28]}  Ne7 {[%clk 0:00:53]} 24. Nxe7+ {[%clk 0:00:21]}  Rexe7 {[%clk 0:00:54]} 25. d5 {[%clk 0:00:17]}  cxd5 {[%clk 0:00:55]} 26. Qxc7 {[%clk 0:00:16]}  Rxc7 {[%clk 0:00:50]} 27. Rxc7 {[%clk 0:00:17]}  Qh5 {[%clk 0:00:14]} 28. Rxb7 {[%clk 0:00:16]} 1-0


[Site "https://www.chess.com"]

[Event "Titled Tuesday Blitz July 26 Late 2022"]
[White "Daggupati, Balaji"]
[Black "Vagman, Roy"]
[WhiteFideId "2090759"]
[BlackFideId "2828995"]
[WhiteElo "2700"]
[BlackElo "1956"]
[Result "1-0"]
[Round "04"]
[TimeControl "180+1"]
[Date "2022.07.26"]
[WhiteClock "0:02:40"]
[BlackClock "0:00:38"]

1. e4 {[%clk 0:03:00]}  e5 {[%clk 0:02:59]} 2. Nf3 {[%clk 0:03:01]}  Nc6 {[%clk 0:02:59]} 3. Bb5 {[%clk 0:03:02]}  a6 {[%clk 0:02:59]} 4. Ba4 {[%clk 0:03:02]}  Nf6 {[%clk 0:02:59]} 5. d4 {[%clk 0:03:03]}  exd4 {[%clk 0:02:54]} 6. O-O {[%clk 0:03:03]}  Be7 {[%clk 0:02:49]} 7. Re1 {[%clk 0:03:02]}  b5 {[%clk 0:02:43]} 8. e5 {[%clk 0:03:01]}  bxa4 {[%clk 0:02:31]} 9. exf6 {[%clk 0:03:00]}  gxf6 {[%clk 0:02:32]} 10. Nxd4 {[%clk 0:02:55]}  Nxd4 {[%clk 0:02:22]} 11. Qxd4 {[%clk 0:02:56]}  Bb7 {[%clk 0:02:18]} 12. Qxf6 {[%clk 0:02:50]}  Rg8 {[%clk 0:01:35]} 13. Bg5 {[%clk 0:02:48]}  Kf8 {[%clk 0:00:57]} 14. Rxe7 {[%clk 0:02:46]}  Rg7 {[%clk 0:00:41]} 15. Rxf7+ {[%clk 0:02:39]}  Rxf7 {[%clk 0:00:38]} 16. Qh8# {[%clk 0:02:40]} 1-0


[Site "https://www.chess.com"]

[Event "Titled Tuesday Blitz July 26 Late 2022"]
[White "Derraugh, Geordie"]
[Black "Zhu, Jiner"]
[WhiteFideId "2603950"]
[BlackFideId "8608059"]
[WhiteElo "2116"]
[BlackElo "2281"]
[Result "1/2-1/2"]
[Round "04"]
[TimeControl "180+1"]
[Date "2022.07.27"]
[WhiteClock "0:00:07"]
[BlackClock "0:00:07"]

1. e4 {[%clk 0:03:00]}  Nf6 {[%clk 0:02:54]} 2. e5 {[%clk 0:03:00]}  Nd5 {[%clk 0:02:55]} 3. c4 {[%clk 0:02:59]}  Nb6 {[%clk 0:02:55]} 4. c5 {[%clk 0:03:00]}  Nd5 {[%clk 0:02:53]} 5. d4 {[%clk 0:03:00]}  d6 {[%clk 0:02:48]} 6. cxd6 {[%clk 0:03:00]}  cxd6 {[%clk 0:02:48]} 7. Nf3 {[%clk 0:03:00]}  Nc6 {[%clk 0:02:47]} 8. Nc3 {[%clk 0:02:59]}  Nxc3 {[%clk 0:02:43]} 9. bxc3 {[%clk 0:03:00]}  dxe5 {[%clk 0:02:43]} 10. d5 {[%clk 0:03:00]}  e4 {[%clk 0:02:20]} 11. dxc6 {[%clk 0:02:34]}  Qxd1+ {[%clk 0:02:19]} 12. Kxd1 {[%clk 0:02:34]}  exf3 {[%clk 0:02:20]} 13. cxb7 {[%clk 0:02:27]}  Bxb7 {[%clk 0:02:19]} 14. Bb5+ {[%clk 0:02:26]}  Kd8 {[%clk 0:02:18]} 15. g3 {[%clk 0:02:18]}  e5 {[%clk 0:02:15]} 16. Be3 {[%clk 0:01:48]}  Kc7 {[%clk 0:02:14]} 17. Kc2 {[%clk 0:01:45]}  Be7 {[%clk 0:01:56]} 18. Bd3 {[%clk 0:01:40]}  g6 {[%clk 0:01:51]} 19. Rhe1 {[%clk 0:01:32]}  Bd6 {[%clk 0:01:44]} 20. Bh6 {[%clk 0:01:31]}  f5 {[%clk 0:01:41]} 21. Bg7 {[%clk 0:01:28]}  Rhe8 {[%clk 0:01:41]} 22. Rad1 {[%clk 0:01:22]}  a6 {[%clk 0:01:24]} 23. Rd2 {[%clk 0:01:06]}  Rac8 {[%clk 0:01:23]} 24. Red1 {[%clk 0:01:03]}  Bc5 {[%clk 0:01:21]} 25. Bc4 {[%clk 0:00:47]}  Bc6 {[%clk 0:00:25]} 26. Bd5 {[%clk 0:00:18]}  Rcd8 {[%clk 0:00:18]} 27. c4 {[%clk 0:00:14]}  Bxd5 {[%clk 0:00:15]} 28. Rxd5 {[%clk 0:00:15]}  Rxd5 {[%clk 0:00:15]} 29. Rxd5 {[%clk 0:00:15]}  Bxf2 {[%clk 0:00:13]} 30. Bxe5+ {[%clk 0:00:15]}  Kc6 {[%clk 0:00:12]} 31. Kd3 {[%clk 0:00:08]}  Bc5 {[%clk 0:00:10]} 32. Kd2 {[%clk 0:00:06]}  f2 {[%clk 0:00:07]} 33. Ke2 {[%clk 0:00:06]}  Re6 {[%clk 0:00:07]} 34. Kf1 {[%clk 0:00:06]}  h5 {[%clk 0:00:06]} 35. Bd4 {[%clk 0:00:06]}  Bxd4 {[%clk 0:00:06]} 36. Rxd4 {[%clk 0:00:06]}  Kc5 {[%clk 0:00:06]} 37. Rf4 {[%clk 0:00:05]}  Re4 {[%clk 0:00:06]} 38. Rf3 {[%clk 0:00:03]}  Rxc4 {[%clk 0:00:05]} 39. Kxf2 {[%clk 0:00:03]}  Rc2+ {[%clk 0:00:05]} 40. Ke3 {[%clk 0:00:03]}  Rxa2 {[%clk 0:00:06]} 41. Kf4 {[%clk 0:00:04]}  Ra4+ {[%clk 0:00:06]} 42. Kg5 {[%clk 0:00:04]}  Rg4+ {[%clk 0:00:06]} 43. Kf6 {[%clk 0:00:04]}  h4 {[%clk 0:00:04]} 44. gxh4 {[%clk 0:00:03]}  Rxh4 {[%clk 0:00:04]} 45. h3 {[%clk 0:00:02]}  a5 {[%clk 0:00:02]} 46. Kxg6 {[%clk 0:00:02]}  a4 {[%clk 0:00:03]} 47. Kg5 {[%clk 0:00:03]}  Rh8 {[%clk 0:00:02]} 48. Rxf5+ {[%clk 0:00:02]}  Kb4 {[%clk 0:00:02]} 49. Rf3 {[%clk 0:00:03]}  a3 {[%clk 0:00:02]} 50. h4 {[%clk 0:00:03]}  Rg8+ {[%clk 0:00:03]} 51. Kh5 {[%clk 0:00:03]}  Rg1 {[%clk 0:00:03]} 52. Rf2 {[%clk 0:00:03]}  Kb3 {[%clk 0:00:03]} 53. Kh6 {[%clk 0:00:03]}  a2 {[%clk 0:00:03]} 54. Rxa2 {[%clk 0:00:04]}  Kxa2 {[%clk 0:00:04]} 55. h5 {[%clk 0:00:05]}  Kb3 {[%clk 0:00:04]} 56. Kh7 {[%clk 0:00:06]}  Kc4 {[%clk 0:00:05]} 57. h6 {[%clk 0:00:06]}  Kd5 {[%clk 0:00:06]} 58. Kh8 {[%clk 0:00:07]}  Ke6 {[%clk 0:00:06]} 59. h7 {[%clk 0:00:07]}  Ra1 {[%clk 0:00:06]} 60. Kg7 {[%clk 0:00:07]}  Ra7+ {[%clk 0:00:07]} 61. Kg6 {[%clk 0:00:07]}  Ra8 {[%clk 0:00:07]} 62. Kg7 {[%clk 0:00:07]}  Ra7+ {[%clk 0:00:08]} 63. Kg6 {[%clk 0:00:07]}  Ra8 {[%clk 0:00:07]} 64. Kg7 {[%clk 0:00:07]}  Kf5 {[%clk 0:00:07]} 65. h8=Q {[%clk 0:00:06]}  Rxh8 {[%clk 0:00:07]} 66. Kxh8 {[%clk 0:00:07]} 1/2-1/2


[Site "https://www.chess.com"]